[Event "December 5 Late 2023"]
[Site "https://www.chess.com"]
[Date "2023.12.05"]
[Round "9"]
[White "Kamsky, Gata"]
[Black "Bolourchifard, Farzad"]
[Result "1/2-1/2"]
[Board "19"]
[TimeControl "180+1"]
[WhiteFideId "2000024"]
[BlackFideId "12510084"]
[WhiteElo "2922"]
[BlackElo "2713"]
[WhiteTeam "USA"]
[BlackTeam "IRI"]
[WhiteClock "0:00:18"]
[BlackClock "0:00:07"]

1. e4 {[%clk 0:03:00]}  e5 {[%clk 0:02:59]} 2. Nf3 {[%clk 0:02:59]}  Nc6 {[%clk 0:03:00]} 3. Bb5 {[%clk 0:02:59]}  a6 {[%clk 0:03:01]} 4. Ba4 {[%clk 0:02:59]}  d6 {[%clk 0:03:01]} 5. c3 {[%clk 0:02:59]}  Bd7 {[%clk 0:03:02]} 6. d4 {[%clk 0:02:58]}  Nf6 {[%clk 0:03:02]} 7. O-O {[%clk 0:02:55]}  g6 {[%clk 0:03:03]} 8. dxe5 {[%clk 0:02:50]}  Nxe5 {[%clk 0:02:53]} 9. Nxe5 {[%clk 0:02:49]}  dxe5 {[%clk 0:02:53]} 10. Bg5 {[%clk 0:02:49]}  Bg7 {[%clk 0:02:42]} 11. Nd2 {[%clk 0:02:46]}  O-O {[%clk 0:02:27]} 12. Bxd7 {[%clk 0:02:44]}  Qxd7 {[%clk 0:02:27]} 13. Bxf6 {[%clk 0:02:42]}  Bxf6 {[%clk 0:02:28]} 14. Qe2 {[%clk 0:02:36]}  Rfd8 {[%clk 0:01:51]} 15. Rfd1 {[%clk 0:02:35]}  Qe6 {[%clk 0:01:43]} 16. a4 {[%clk 0:02:16]}  a5 {[%clk 0:01:34]} 17. Nc4 {[%clk 0:02:12]}  b6 {[%clk 0:01:32]} 18. Ne3 {[%clk 0:02:07]}  Rxd1+ {[%clk 0:01:06]} 19. Rxd1 {[%clk 0:02:06]}  Rd8 {[%clk 0:01:07]} 20. Rxd8+ {[%clk 0:02:00]}  Bxd8 {[%clk 0:01:08]} 21. Qd3 {[%clk 0:01:56]}  Be7 {[%clk 0:01:00]} 22. Nd5 {[%clk 0:01:55]}  Qd6 {[%clk 0:00:45]} 23. Qc4 {[%clk 0:01:47]}  Bd8 {[%clk 0:00:44]} 24. Qe2 {[%clk 0:01:28]}  Kg7 {[%clk 0:00:42]} 25. g3 {[%clk 0:01:26]}  Qd7 {[%clk 0:00:39]} 26. b3 {[%clk 0:01:24]}  c6 {[%clk 0:00:35]} 27. Ne3 {[%clk 0:01:24]}  b5 {[%clk 0:00:36]} 28. Kg2 {[%clk 0:01:18]}  h5 {[%clk 0:00:33]} 29. Qd1 {[%clk 0:01:12]}  Qe7 {[%clk 0:00:19]} 30. Qd3 {[%clk 0:01:10]}  Bb6 {[%clk 0:00:19]} 31. axb5 {[%clk 0:01:06]}  cxb5 {[%clk 0:00:19]} 32. Qxb5 {[%clk 0:00:47]}  Bxe3 {[%clk 0:00:19]} 33. fxe3 {[%clk 0:00:47]}  Qc7 {[%clk 0:00:20]} 34. c4 {[%clk 0:00:45]}  f6 {[%clk 0:00:20]} 35. Kf2 {[%clk 0:00:42]}  Kh6 {[%clk 0:00:14]} 36. c5 {[%clk 0:00:41]}  Qd8 {[%clk 0:00:13]} 37. Ke2 {[%clk 0:00:41]}  Qc8 {[%clk 0:00:13]} 38. c6 {[%clk 0:00:38]}  Qg4+ {[%clk 0:00:14]} 39. Kf2 {[%clk 0:00:35]}  Qd1 {[%clk 0:00:10]} 40. Qd5 {[%clk 0:00:30]}  Qc2+ {[%clk 0:00:08]} 41. Ke1 {[%clk 0:00:28]}  Qc1+ {[%clk 0:00:06]} 42. Ke2 {[%clk 0:00:28]}  Qc2+ {[%clk 0:00:07]} 43. Ke1 {[%clk 0:00:21]}  Qc1+ {[%clk 0:00:07]} 44. Ke2 {[%clk 0:00:21]}  Qc2+ {[%clk 0:00:07]} 45. Ke1 {[%clk 0:00:18]} 1/2-1/2

[Event "December 5 Late 2023"]
[Site "https://www.chess.com"]
[Date "2023.12.05"]
[Round "9"]
[White "Shuvalova, Polina"]
[Black "Zavgorodniy, Sergiy"]
[Result "1/2-1/2"]
[Board "20"]
[TimeControl "180+1"]
[WhiteFideId "24171760"]
[BlackFideId "14110148"]
[WhiteElo "2837"]
[BlackElo "2668"]
[WhiteTeam "RUS"]
[BlackTeam "UKR"]
[WhiteClock "0:00:40"]
[BlackClock "0:00:34"]

1. e4 {[%clk 0:03:00]}  c6 {[%clk 0:02:59]} 2. d4 {[%clk 0:02:58]}  d5 {[%clk 0:03:00]} 3. exd5 {[%clk 0:02:58]}  cxd5 {[%clk 0:03:00]} 4. Bd3 {[%clk 0:02:57]}  Nc6 {[%clk 0:03:00]} 5. c3 {[%clk 0:02:58]}  Qc7 {[%clk 0:03:00]} 6. Ne2 {[%clk 0:02:57]}  Bg4 {[%clk 0:02:59]} 7. O-O {[%clk 0:02:57]}  Nf6 {[%clk 0:02:54]} 8. Qe1 {[%clk 0:02:55]}  Bh5 {[%clk 0:02:50]} 9. Nf4 {[%clk 0:02:50]}  e6 {[%clk 0:02:48]} 10. Nxh5 {[%clk 0:02:47]}  Nxh5 {[%clk 0:02:49]} 11. g3 {[%clk 0:02:45]}  Bd6 {[%clk 0:02:48]} 12. Be3 {[%clk 0:02:45]}  Nf6 {[%clk 0:02:43]} 13. Nd2 {[%clk 0:02:45]}  h5 {[%clk 0:02:43]} 14. Bg5 {[%clk 0:02:37]}  Nh7 {[%clk 0:02:35]} 15. Be3 {[%clk 0:02:36]}  Nf6 {[%clk 0:02:35]} 16. Kg2 {[%clk 0:02:36]}  g6 {[%clk 0:02:33]} 17. Rc1 {[%clk 0:02:33]}  Kf8 {[%clk 0:02:28]} 18. c4 {[%clk 0:02:27]}  dxc4 {[%clk 0:02:27]} 19. Nxc4 {[%clk 0:02:28]}  Be7 {[%clk 0:02:24]} 20. Ne5 {[%clk 0:02:13]}  Rc8 {[%clk 0:02:16]} 21. Bxg6 {[%clk 0:02:03]}  fxg6 {[%clk 0:02:13]} 22. Nxg6+ {[%clk 0:02:03]}  Kf7 {[%clk 0:02:11]} 23. Nxh8+ {[%clk 0:02:02]}  Rxh8 {[%clk 0:02:12]} 24. Qe2 {[%clk 0:02:01]}  h4 {[%clk 0:02:05]} 25. Qf3 {[%clk 0:01:59]}  h3+ {[%clk 0:02:05]} 26. Kg1 {[%clk 0:01:58]}  Ke8 {[%clk 0:01:54]} 27. Rfe1 {[%clk 0:01:41]}  Nd5 {[%clk 0:01:48]} 28. Qe4 {[%clk 0:01:29]}  Kd7 {[%clk 0:01:46]} 29. Bg5 {[%clk 0:01:22]}  Qd6 {[%clk 0:01:40]} 30. Bxe7 {[%clk 0:01:19]}  Ncxe7 {[%clk 0:01:41]} 31. Rc2 {[%clk 0:01:15]}  Nf5 {[%clk 0:01:32]} 32. Rce2 {[%clk 0:01:09]}  Rh6 {[%clk 0:01:28]} 33. Qg4 {[%clk 0:01:06]}  Nf6 {[%clk 0:01:08]} 34. Qg5 {[%clk 0:01:06]}  Qd5 {[%clk 0:01:08]} 35. f4 {[%clk 0:00:43]}  Qxd4+ {[%clk 0:00:59]} 36. Kh1 {[%clk 0:00:42]}  Qd5+ {[%clk 0:00:56]} 37. Kg1 {[%clk 0:00:41]}  Qd4+ {[%clk 0:00:53]} 38. Kh1 {[%clk 0:00:40]}  Qd5+ {[%clk 0:00:37]} 39. Kg1 {[%clk 0:00:40]}  Qd4+ {[%clk 0:00:34]} 1/2-1/2

[Event "December 5 Late 2023"]
[Site "https://www.chess.com"]
[Date "2023.12.05"]
[Round "9"]
[White "Brodsky, David"]
[Black "Prithu Gupta"]
[Result "1-0"]
[Board "22"]
[TimeControl "180+1"]
[WhiteFideId "2073250"]
[BlackFideId "46618546"]
[WhiteElo "2789"]
[BlackElo "2566"]
[WhiteTeam "USA"]
[BlackTeam "IND"]
[WhiteClock "0:00:11"]
[BlackClock "0:00:00"]

1. e4 {[%clk 0:03:00]}  e5 {[%clk 0:02:54]} 2. Nf3 {[%clk 0:03:00]}  Nc6 {[%clk 0:02:53]} 3. Bb5 {[%clk 0:03:00]}  g6 {[%clk 0:02:52]} 4. d4 {[%clk 0:02:59]}  exd4 {[%clk 0:02:52]} 5. Bg5 {[%clk 0:02:58]}  Be7 {[%clk 0:02:53]} 6. Bxe7 {[%clk 0:02:59]}  Qxe7 {[%clk 0:02:53]} 7. O-O {[%clk 0:02:59]}  Nf6 {[%clk 0:02:50]} 8. e5 {[%clk 0:02:58]}  Ne4 {[%clk 0:02:33]} 9. Re1 {[%clk 0:02:52]}  Nc5 {[%clk 0:02:32]} 10. c3 {[%clk 0:02:47]}  d3 {[%clk 0:02:28]} 11. b4 {[%clk 0:02:41]}  Ne6 {[%clk 0:02:28]} 12. Qxd3 {[%clk 0:02:37]}  O-O {[%clk 0:02:27]} 13. Nbd2 {[%clk 0:02:34]}  f6 {[%clk 0:02:06]} 14. exf6 {[%clk 0:02:20]}  Qxf6 {[%clk 0:02:04]} 15. Ne4 {[%clk 0:02:19]}  Qg7 {[%clk 0:02:00]} 16. Bc4 {[%clk 0:02:13]}  Kh8 {[%clk 0:01:48]} 17. Bxe6 {[%clk 0:02:10]}  dxe6 {[%clk 0:01:49]} 18. Neg5 {[%clk 0:02:02]}  e5 {[%clk 0:01:35]} 19. b5 {[%clk 0:02:01]}  Bf5 {[%clk 0:01:32]} 20. Qe3 {[%clk 0:01:50]}  Na5 {[%clk 0:01:13]} 21. Qxe5 {[%clk 0:01:22]}  Qxe5 {[%clk 0:01:05]} 22. Nxe5 {[%clk 0:01:22]}  h6 {[%clk 0:00:47]} 23. Ne6 {[%clk 0:01:21]}  Rfc8 {[%clk 0:00:27]} 24. g4 {[%clk 0:01:16]}  Bxe6 {[%clk 0:00:21]} 25. Nxg6+ {[%clk 0:01:16]}  Kg7 {[%clk 0:00:22]} 26. Rxe6 {[%clk 0:01:17]}  c6 {[%clk 0:00:22]} 27. bxc6 {[%clk 0:00:57]}  Rxc6 {[%clk 0:00:21]} 28. Nf4 {[%clk 0:00:52]}  Rac8 {[%clk 0:00:19]} 29. Rd1 {[%clk 0:00:44]}  Rxe6 {[%clk 0:00:17]} 30. Nxe6+ {[%clk 0:00:45]}  Kf6 {[%clk 0:00:17]} 31. Nf4 {[%clk 0:00:31]}  Kg5 {[%clk 0:00:14]} 32. Rd5+ {[%clk 0:00:22]}  Kxf4 {[%clk 0:00:14]} 33. Rxa5 {[%clk 0:00:23]}  a6 {[%clk 0:00:04]} 34. h3 {[%clk 0:00:16]}  Rxc3 {[%clk 0:00:04]} 35. Kg2 {[%clk 0:00:15]}  Rc2 {[%clk 0:00:03]} 36. a4 {[%clk 0:00:11]}  Ra2 {[%clk 0:00:02]} 37. Rf5+ {[%clk 0:00:10]}  Ke4 {[%clk 0:00:00]} 38. a5 {[%clk 0:00:11]} 1-0

[Event "December 5 Late 2023"]
[Site "https://www.chess.com"]
[Date "2023.12.05"]
[Round "9"]
[White "Janaszak, Dawid"]
[Black "Kosteniuk, Alexandra"]
[Result "1/2-1/2"]
[Board "24"]
[TimeControl "180+1"]
[WhiteFideId "1119206"]
[BlackFideId "4128125"]
[WhiteElo "2618"]
[BlackElo "2744"]
[WhiteTeam "POL"]
[BlackTeam "SUI"]
[WhiteClock "0:00:07"]
[BlackClock "0:00:17"]

1. e4 {[%clk 0:03:00]}  e5 {[%clk 0:03:00]} 2. Nf3 {[%clk 0:03:00]}  Nf6 {[%clk 0:03:00]} 3. Nxe5 {[%clk 0:02:59]}  d6 {[%clk 0:03:00]} 4. Nf3 {[%clk 0:02:59]}  Nxe4 {[%clk 0:03:01]} 5. Nc3 {[%clk 0:03:00]}  Nxc3 {[%clk 0:03:00]} 6. dxc3 {[%clk 0:03:01]}  Be7 {[%clk 0:03:01]} 7. Be3 {[%clk 0:03:00]}  Nd7 {[%clk 0:03:00]} 8. Bd3 {[%clk 0:02:57]}  Nb6 {[%clk 0:03:00]} 9. Qd2 {[%clk 0:02:53]}  Be6 {[%clk 0:03:00]} 10. Nd4 {[%clk 0:02:48]}  Qd7 {[%clk 0:02:56]} 11. b3 {[%clk 0:02:43]}  Nd5 {[%clk 0:02:47]} 12. Nxe6 {[%clk 0:02:39]}  fxe6 {[%clk 0:02:47]} 13. Be4 {[%clk 0:02:10]}  c6 {[%clk 0:02:28]} 14. O-O {[%clk 0:01:57]}  Bf6 {[%clk 0:02:23]} 15. Bd4 {[%clk 0:01:48]}  e5 {[%clk 0:02:17]} 16. Bxd5 {[%clk 0:01:44]}  cxd5 {[%clk 0:02:10]} 17. Be3 {[%clk 0:01:44]}  Qc6 {[%clk 0:02:09]} 18. Rad1 {[%clk 0:01:42]}  Ke7 {[%clk 0:01:53]} 19. Qxd5 {[%clk 0:01:42]}  Qxd5 {[%clk 0:01:53]} 20. Rxd5 {[%clk 0:01:42]}  Ke6 {[%clk 0:01:52]} 21. c4 {[%clk 0:01:43]}  Rhc8 {[%clk 0:01:47]} 22. Rfd1 {[%clk 0:01:41]}  Be7 {[%clk 0:01:46]} 23. f4 {[%clk 0:01:38]}  Rc6 {[%clk 0:01:35]} 24. fxe5 {[%clk 0:01:39]}  dxe5 {[%clk 0:01:35]} 25. Rd7 {[%clk 0:01:33]}  b6 {[%clk 0:01:34]} 26. a4 {[%clk 0:01:20]}  Bf6 {[%clk 0:01:24]} 27. Kf2 {[%clk 0:01:14]}  e4 {[%clk 0:01:22]} 28. Ke2 {[%clk 0:01:10]}  Be5 {[%clk 0:01:14]} 29. Bg5 {[%clk 0:00:58]}  Rc7 {[%clk 0:00:50]} 30. Rd8 {[%clk 0:00:49]}  Rxd8 {[%clk 0:00:48]} 31. Rxd8 {[%clk 0:00:50]}  Bxh2 {[%clk 0:00:46]} 32. Ke3 {[%clk 0:00:44]}  h6 {[%clk 0:00:45]} 33. Bf4 {[%clk 0:00:36]}  Bxf4+ {[%clk 0:00:44]} 34. Kxf4 {[%clk 0:00:37]}  Rf7+ {[%clk 0:00:44]} 35. Kxe4 {[%clk 0:00:38]}  Rf2 {[%clk 0:00:44]} 36. g4 {[%clk 0:00:27]}  Rg2 {[%clk 0:00:42]} 37. Kf4 {[%clk 0:00:19]}  Rf2+ {[%clk 0:00:36]} 38. Kg3 {[%clk 0:00:15]}  Rxc2 {[%clk 0:00:35]} 39. Ra8 {[%clk 0:00:15]}  Rc3+ {[%clk 0:00:35]} 40. Kh4 {[%clk 0:00:15]}  Kf6 {[%clk 0:00:31]} 41. Rf8+ {[%clk 0:00:11]}  Kg6 {[%clk 0:00:30]} 42. Ra8 {[%clk 0:00:10]}  Rxb3 {[%clk 0:00:28]} 43. Rxa7 {[%clk 0:00:09]}  Kf6 {[%clk 0:00:28]} 44. g5+ {[%clk 0:00:05]}  hxg5+ {[%clk 0:00:28]} 45. Kg4 {[%clk 0:00:06]}  Rb4 {[%clk 0:00:28]} 46. Rc7 {[%clk 0:00:06]}  Kg6 {[%clk 0:00:17]} 47. Rc6+ {[%clk 0:00:06]}  Kh7 {[%clk 0:00:17]} 48. Kxg5 {[%clk 0:00:06]}  Rxa4 {[%clk 0:00:17]} 49. c5 {[%clk 0:00:05]}  Ra5 {[%clk 0:00:14]} 50. Rxb6 {[%clk 0:00:05]}  Rxc5+ {[%clk 0:00:15]} 51. Kg4 {[%clk 0:00:06]}  Rc4+ {[%clk 0:00:14]} 52. Kg5 {[%clk 0:00:05]}  Rc5+ {[%clk 0:00:14]} 53. Kg4 {[%clk 0:00:06]}  g6 {[%clk 0:00:14]} 54. Ra6 {[%clk 0:00:05]}  Kh6 {[%clk 0:00:15]} 55. Rb6 {[%clk 0:00:05]}  Rc4+ {[%clk 0:00:15]} 56. Kg3 {[%clk 0:00:06]}  Kh5 {[%clk 0:00:16]} 57. Rb5+ {[%clk 0:00:06]}  g5 {[%clk 0:00:16]} 58. Ra5 {[%clk 0:00:07]}  Rc3+ {[%clk 0:00:17]} 59. Kg2 {[%clk 0:00:07]}  Kh4 {[%clk 0:00:17]} 60. Ra4+ {[%clk 0:00:08]}  g4 {[%clk 0:00:18]} 61. Ra8 {[%clk 0:00:08]}  Rc2+ {[%clk 0:00:18]} 62. Kg1 {[%clk 0:00:08]}  Kh3 {[%clk 0:00:18]} 63. Ra3+ {[%clk 0:00:05]}  g3 {[%clk 0:00:18]} 64. Ra1 {[%clk 0:00:06]}  Rh2 {[%clk 0:00:18]} 65. Rf1 {[%clk 0:00:04]}  Rg2+ {[%clk 0:00:17]} 66. Kh1 {[%clk 0:00:04]}  Re2 {[%clk 0:00:17]} 67. Kg1 {[%clk 0:00:04]}  Kg4 {[%clk 0:00:18]} 68. Kh1 {[%clk 0:00:04]}  Rh2+ {[%clk 0:00:18]} 69. Kg1 {[%clk 0:00:05]}  Kh3 {[%clk 0:00:18]} 70. Re1 {[%clk 0:00:05]}  Rf2 {[%clk 0:00:18]} 71. Kh1 {[%clk 0:00:05]}  Rf4 {[%clk 0:00:17]} 72. Kg1 {[%clk 0:00:05]}  Rf3 {[%clk 0:00:18]} 73. Kh1 {[%clk 0:00:05]}  g2+ {[%clk 0:00:18]} 74. Kg1 {[%clk 0:00:06]}  Kg3 {[%clk 0:00:19]} 75. Rd1 {[%clk 0:00:06]}  Re3 {[%clk 0:00:19]} 76. Rc1 {[%clk 0:00:06]}  Re8 {[%clk 0:00:17]} 77. Rc3+ {[%clk 0:00:06]}  Kf4 {[%clk 0:00:17]} 78. Kxg2 {[%clk 0:00:07]}  Re3 {[%clk 0:00:17]} 79. Rxe3 {[%clk 0:00:07]}  Kxe3 {[%clk 0:00:17]} 1/2-1/2

[Event "December 5 Late 2023"]
[Site "https://www.chess.com"]
[Date "2023.12.05"]
[Round "9"]
[White "Krzyzanowski, Marcin"]
[Black "Zakarian, David"]
[Result "1/2-1/2"]
[Board "25"]
[TimeControl "180+1"]
[WhiteFideId "1132199"]
[BlackFideId "13301276"]
[WhiteElo "2741"]
[BlackElo "2432"]
[WhiteTeam "POL"]
[BlackTeam "ARM"]
[WhiteClock "0:00:06"]
[BlackClock "0:00:11"]

1. e4 {[%clk 0:03:00]}  Nc6 {[%clk 0:02:57]} 2. Nf3 {[%clk 0:02:57]}  d6 {[%clk 0:02:58]} 3. d4 {[%clk 0:02:56]}  Nf6 {[%clk 0:02:58]} 4. Nc3 {[%clk 0:02:51]}  Bg4 {[%clk 0:02:58]} 5. Be3 {[%clk 0:02:51]}  e6 {[%clk 0:02:57]} 6. h3 {[%clk 0:02:51]}  Bh5 {[%clk 0:02:57]} 7. g4 {[%clk 0:02:40]}  Bg6 {[%clk 0:02:56]} 8. Bd3 {[%clk 0:02:41]}  d5 {[%clk 0:02:51]} 9. e5 {[%clk 0:02:33]}  Nd7 {[%clk 0:02:52]} 10. Ne2 {[%clk 0:02:22]}  Bxd3 {[%clk 0:02:45]} 11. Qxd3 {[%clk 0:02:22]}  Nb4 {[%clk 0:02:46]} 12. Qd2 {[%clk 0:02:20]}  c5 {[%clk 0:02:46]} 13. c3 {[%clk 0:02:15]}  Nc6 {[%clk 0:02:43]} 14. Nf4 {[%clk 0:02:12]}  cxd4 {[%clk 0:02:35]} 15. Bxd4 {[%clk 0:02:04]}  Nxd4 {[%clk 0:02:28]} 16. cxd4 {[%clk 0:02:00]}  Rc8 {[%clk 0:02:04]} 17. Kf1 {[%clk 0:01:56]}  Be7 {[%clk 0:02:00]} 18. h4 {[%clk 0:01:51]}  Qb6 {[%clk 0:01:43]} 19. Kg2 {[%clk 0:01:50]}  O-O {[%clk 0:01:33]} 20. Rac1 {[%clk 0:01:43]}  f6 {[%clk 0:01:25]} 21. Rxc8 {[%clk 0:01:27]}  Rxc8 {[%clk 0:01:26]} 22. Qe3 {[%clk 0:01:05]}  fxe5 {[%clk 0:00:47]} 23. Nxe5 {[%clk 0:01:05]}  Nxe5 {[%clk 0:00:47]} 24. Qxe5 {[%clk 0:01:03]}  Bf6 {[%clk 0:00:45]} 25. Qxe6+ {[%clk 0:01:00]}  Qxe6 {[%clk 0:00:46]} 26. Nxe6 {[%clk 0:01:01]}  Rc2 {[%clk 0:00:38]} 27. g5 {[%clk 0:00:58]}  Be7 {[%clk 0:00:36]} 28. Re1 {[%clk 0:00:52]}  Kf7 {[%clk 0:00:34]} 29. Nf4 {[%clk 0:00:46]}  Rxb2 {[%clk 0:00:34]} 30. Nxd5 {[%clk 0:00:44]}  Bd6 {[%clk 0:00:35]} 31. Ne3 {[%clk 0:00:36]}  Rxa2 {[%clk 0:00:32]} 32. Nf5 {[%clk 0:00:34]}  Bf8 {[%clk 0:00:31]} 33. Rc1 {[%clk 0:00:22]}  Rd2 {[%clk 0:00:24]} 34. Rc7+ {[%clk 0:00:22]}  Kg6 {[%clk 0:00:20]} 35. Rxb7 {[%clk 0:00:04]}  Kxf5 {[%clk 0:00:16]} 36. Rf7+ {[%clk 0:00:04]}  Kg6 {[%clk 0:00:15]} 37. Rxf8 {[%clk 0:00:03]}  Rxd4 {[%clk 0:00:16]} 38. Kg3 {[%clk 0:00:03]}  a5 {[%clk 0:00:14]} 39. Ra8 {[%clk 0:00:02]}  a4 {[%clk 0:00:13]} 40. Ra5 {[%clk 0:00:01]}  Rb4 {[%clk 0:00:13]} 41. f4 {[%clk 0:00:02]}  Kh5 {[%clk 0:00:12]} 42. g6+ {[%clk 0:00:02]}  Kxg6 {[%clk 0:00:11]} 43. h5+ {[%clk 0:00:02]}  Kh6 {[%clk 0:00:11]} 44. Kg4 {[%clk 0:00:03]}  g6 {[%clk 0:00:11]} 45. hxg6 {[%clk 0:00:04]}  Kxg6 {[%clk 0:00:11]} 46. Ra6+ {[%clk 0:00:04]}  Kg7 {[%clk 0:00:11]} 47. Kg5 {[%clk 0:00:05]}  Rb5+ {[%clk 0:00:09]} 48. f5 {[%clk 0:00:05]}  h6+ {[%clk 0:00:09]} 49. Kg4 {[%clk 0:00:06]}  Kf7 {[%clk 0:00:09]} 50. Rxh6 {[%clk 0:00:06]}  Ra5 {[%clk 0:00:08]} 51. Kg5 {[%clk 0:00:06]}  a3 {[%clk 0:00:08]} 52. Rh7+ {[%clk 0:00:06]}  Kg8 {[%clk 0:00:09]} 53. Rh1 {[%clk 0:00:06]}  a2 {[%clk 0:00:08]} 54. Ra1 {[%clk 0:00:06]}  Kf7 {[%clk 0:00:08]} 55. Kf4 {[%clk 0:00:07]}  Kf6 {[%clk 0:00:08]} 56. Ke4 {[%clk 0:00:07]}  Ra4+ {[%clk 0:00:08]} 57. Kd3 {[%clk 0:00:07]}  Kxf5 {[%clk 0:00:09]} 58. Kc3 {[%clk 0:00:07]}  Ke5 {[%clk 0:00:10]} 59. Kb3 {[%clk 0:00:08]}  Ra5 {[%clk 0:00:10]} 60. Rxa2 {[%clk 0:00:05]}  Rxa2 {[%clk 0:00:11]} 61. Kxa2 {[%clk 0:00:06]} 1/2-1/2

[Event "December 5 Late 2023"]
[Site "https://www.chess.com"]
[Date "2023.12.05"]
[Round "9"]
[White "Bardyk, Artem"]
[Black "Omelja, Artem"]
[Result "0-1"]
[Board "28"]
[TimeControl "180+1"]
[WhiteFideId "34349979"]
[BlackFideId "14119846"]
[WhiteElo "2850"]
[BlackElo "2631"]
[WhiteTeam "RUS"]
[BlackTeam "UKR"]
[WhiteClock "0:00:02"]
[BlackClock "0:00:53"]

1. e4 {[%clk 0:02:57]}  c5 {[%clk 0:02:38]} 2. c3 {[%clk 0:02:56]}  b6 {[%clk 0:02:36]} 3. d4 {[%clk 0:02:54]}  Bb7 {[%clk 0:02:36]} 4. Bd3 {[%clk 0:02:52]}  cxd4 {[%clk 0:02:28]} 5. cxd4 {[%clk 0:02:51]}  Nc6 {[%clk 0:02:29]} 6. d5 {[%clk 0:02:49]}  Nb4 {[%clk 0:02:28]} 7. Nf3 {[%clk 0:02:47]}  e6 {[%clk 0:02:24]} 8. O-O {[%clk 0:02:39]}  exd5 {[%clk 0:02:23]} 9. exd5 {[%clk 0:02:39]}  Bxd5 {[%clk 0:02:15]} 10. Re1+ {[%clk 0:02:35]}  Be7 {[%clk 0:02:14]} 11. Nc3 {[%clk 0:02:35]}  Be6 {[%clk 0:02:14]} 12. Bb1 {[%clk 0:01:34]}  Nf6 {[%clk 0:02:02]} 13. a3 {[%clk 0:01:27]}  Nc6 {[%clk 0:02:00]} 14. Bg5 {[%clk 0:01:21]}  O-O {[%clk 0:01:43]} 15. Qc2 {[%clk 0:01:18]}  g6 {[%clk 0:01:24]} 16. Qd2 {[%clk 0:01:04]}  Rc8 {[%clk 0:01:23]} 17. h4 {[%clk 0:00:47]}  Na5 {[%clk 0:01:23]} 18. Nd4 {[%clk 0:00:30]}  Nc4 {[%clk 0:01:16]} 19. Qe2 {[%clk 0:00:30]}  Qc7 {[%clk 0:01:12]} 20. Ba2 {[%clk 0:00:27]}  a6 {[%clk 0:01:06]} 21. h5 {[%clk 0:00:27]}  Ng4 {[%clk 0:01:01]} 22. g3 {[%clk 0:00:08]}  Bxg5 {[%clk 0:01:00]} 23. Nxe6 {[%clk 0:00:08]}  dxe6 {[%clk 0:00:57]} 24. Qxg4 {[%clk 0:00:09]}  Bf6 {[%clk 0:00:56]} 25. Ne4 {[%clk 0:00:07]}  Bg7 {[%clk 0:00:55]} 26. Rac1 {[%clk 0:00:07]}  b5 {[%clk 0:00:54]} 27. b3 {[%clk 0:00:07]}  f5 {[%clk 0:00:53]} 28. Qe2 {[%clk 0:00:04]}  fxe4 {[%clk 0:00:53]} 29. bxc4 {[%clk 0:00:04]}  Bd4 {[%clk 0:00:50]} 30. Kg2 {[%clk 0:00:01]}  Rxf2+ {[%clk 0:00:49]} 31. Qxf2 {[%clk 0:00:02]}  Bxf2 {[%clk 0:00:50]} 32. Kxf2 {[%clk 0:00:03]}  Rf8+ {[%clk 0:00:50]} 33. Kg2 {[%clk 0:00:03]}  Rf3 {[%clk 0:00:50]} 34. cxb5 {[%clk 0:00:01]}  Qxg3+ {[%clk 0:00:51]} 35. Kh1 {[%clk 0:00:02]}  Qh3+ {[%clk 0:00:50]} 36. Kg1 {[%clk 0:00:02]}  Rg3+ {[%clk 0:00:51]} 37. Kf2 {[%clk 0:00:02]}  Qh2+ {[%clk 0:00:52]} 38. Kf1 {[%clk 0:00:02]}  Rg1# {[%clk 0:00:53]} 0-1

[Event "December 5 Late 2023"]
[Site "https://www.chess.com"]
[Date "2023.12.05"]
[Round "9"]
[White "Kashefi, Amir Hosein"]
[Black "Wafa, Hamed"]
[Result "1-0"]
[Board "35"]
[TimeControl "180+1"]
[WhiteFideId "12557935"]
[BlackFideId "10628452"]
[WhiteElo "2556"]
[BlackElo "2711"]
[WhiteTeam "IRI"]
[BlackTeam "EGY"]
[WhiteClock "0:00:39"]
[BlackClock "0:00:13"]

1. d4 {[%clk 0:02:59]}  Nf6 {[%clk 0:02:55]} 2. Nf3 {[%clk 0:02:58]}  b6 {[%clk 0:02:53]} 3. g3 {[%clk 0:02:58]}  Bb7 {[%clk 0:02:52]} 4. Bg2 {[%clk 0:02:59]}  e6 {[%clk 0:02:51]} 5. O-O {[%clk 0:03:00]}  Be7 {[%clk 0:02:51]} 6. Bg5 {[%clk 0:03:00]}  O-O {[%clk 0:02:49]} 7. Qd3 {[%clk 0:02:59]}  h6 {[%clk 0:02:47]} 8. Bxf6 {[%clk 0:02:59]}  Bxf6 {[%clk 0:02:47]} 9. Ng5 {[%clk 0:03:00]}  hxg5 {[%clk 0:02:35]} 10. Bxb7 {[%clk 0:03:00]}  Nc6 {[%clk 0:02:36]} 11. Bxa8 {[%clk 0:02:59]}  Qxa8 {[%clk 0:02:36]} 12. c3 {[%clk 0:02:59]}  e5 {[%clk 0:02:30]} 13. e3 {[%clk 0:02:55]}  d5 {[%clk 0:02:28]} 14. Qf5 {[%clk 0:02:51]}  Ne7 {[%clk 0:02:26]} 15. Qh3 {[%clk 0:02:44]}  g6 {[%clk 0:02:21]} 16. Nd2 {[%clk 0:02:42]}  Kg7 {[%clk 0:02:20]} 17. dxe5 {[%clk 0:02:38]}  Bxe5 {[%clk 0:02:19]} 18. Rad1 {[%clk 0:02:36]}  Nf5 {[%clk 0:02:09]} 19. Qg2 {[%clk 0:02:32]}  g4 {[%clk 0:02:05]} 20. e4 {[%clk 0:02:26]}  Nd6 {[%clk 0:02:00]} 21. exd5 {[%clk 0:02:26]}  Qc8 {[%clk 0:01:57]} 22. Rfe1 {[%clk 0:02:26]}  Qf5 {[%clk 0:01:57]} 23. Ne4 {[%clk 0:02:23]}  a5 {[%clk 0:01:48]} 24. Nxd6 {[%clk 0:02:22]}  cxd6 {[%clk 0:01:46]} 25. Re4 {[%clk 0:02:15]}  b5 {[%clk 0:01:41]} 26. Rde1 {[%clk 0:02:14]}  Rc8 {[%clk 0:01:39]} 27. Qf1 {[%clk 0:02:11]}  Rc5 {[%clk 0:01:30]} 28. Qe2 {[%clk 0:02:10]}  Rxd5 {[%clk 0:01:27]} 29. Rxg4 {[%clk 0:02:02]}  a4 {[%clk 0:01:22]} 30. Re4 {[%clk 0:01:58]}  a3 {[%clk 0:01:21]} 31. bxa3 {[%clk 0:01:38]}  Bxc3 {[%clk 0:01:18]} 32. Rc1 {[%clk 0:01:30]}  Be5 {[%clk 0:01:04]} 33. Kg2 {[%clk 0:01:22]}  Bf6 {[%clk 0:00:59]} 34. Rf4 {[%clk 0:01:20]}  Qd7 {[%clk 0:00:53]} 35. Rd1 {[%clk 0:01:19]}  Re5 {[%clk 0:00:50]} 36. Qf3 {[%clk 0:01:19]}  Bg5 {[%clk 0:00:48]} 37. Rfd4 {[%clk 0:01:16]}  Re6 {[%clk 0:00:49]} 38. Qd5 {[%clk 0:01:12]}  Bf6 {[%clk 0:00:47]} 39. R4d2 {[%clk 0:01:08]}  Qa7 {[%clk 0:00:43]} 40. Qxb5 {[%clk 0:01:04]}  Qxa3 {[%clk 0:00:42]} 41. Qb3 {[%clk 0:01:03]}  Qa8+ {[%clk 0:00:39]} 42. Qf3 {[%clk 0:01:02]}  Qa6 {[%clk 0:00:37]} 43. h4 {[%clk 0:01:02]}  Be5 {[%clk 0:00:33]} 44. Qd5 {[%clk 0:00:57]}  Rf6 {[%clk 0:00:30]} 45. Rd3 {[%clk 0:00:56]}  Rf5 {[%clk 0:00:25]} 46. Rf3 {[%clk 0:00:55]}  Rxf3 {[%clk 0:00:20]} 47. Kxf3 {[%clk 0:00:52]}  Qa3+ {[%clk 0:00:20]} 48. Kg2 {[%clk 0:00:52]}  Qb2 {[%clk 0:00:20]} 49. Rd3 {[%clk 0:00:52]}  Qa1 {[%clk 0:00:19]} 50. Rf3 {[%clk 0:00:52]}  Bf6 {[%clk 0:00:20]} 51. Qxd6 {[%clk 0:00:51]}  Be5 {[%clk 0:00:20]} 52. Qd5 {[%clk 0:00:44]}  f6 {[%clk 0:00:17]} 53. Rb3 {[%clk 0:00:39]}  Qxa2 {[%clk 0:00:15]} 54. Rb7+ {[%clk 0:00:38]}  Kh6 {[%clk 0:00:13]} 55. Qxa2 {[%clk 0:00:39]} 1-0